Cogmind - Beta 16 @@@ ROGUE MODE // 2025.11.29 @ 15:24:05 Player: lvl5hm Result: Destroyed by IS-OWJ(R) with Subdweller Beam Cannon Performance ------------- Evolutions (0) 0 Regions Visited (2) 400 Robots Destroyed (34) 170 Value Destroyed (791) 791 Prototype IDs (0) 0 Alien Tech Used (0) 0 Bonus (0) 0 TOTAL SCORE: 1361 Bonus ------- None Cogmind --------- Core Integrity 0/250 Matter 292/300 Energy 200/200 System Corruption 0% Temperature Cool (9) Movement Treading (240) Ox1 Location -10/Subcaves Parts ------- > --- POWER (1) -------- Subdweller Power Source > --- PROPULSION (2) --- Light Treads Light Treads > --- UTILITY (2) ------ High-capacity Storage Unit Hardened Light Armor Plating > --- WEAPON (2) ------- Subdweller Machine Gun Subdweller Machine Gun > --- INVENTORY (20) --- Ion Engine Light Treads Light Treads Armored Wheel Armored Wheel Subdweller Monowheel High-capacity Matter Pod (200) High-capacity Matter Pod (15) Seismic Detector Seismic Detector Hardened Light Armor Plating Hardened Light Armor Plating Subdweller Machine Gun Subdweller Machine Gun Subdweller Machine Gun Improved Light Cannon Improved Light Cannon Improved Light Cannon Hammer Peak State ------------ > --- POWER ------------ Subdweller Power Source > --- PROPULSION ------- Light Treads Light Treads > --- UTILITY ---------- High-capacity Storage Unit Hardened Light Armor Plating > --- WEAPON ----------- Subdweller Machine Gun Subdweller Machine Gun > --- INVENTORY -------- Ion Engine Subdweller Power Source Light Treads Light Treads Armored Wheel Armored Wheel High-capacity Matter Pod High-capacity Matter Pod Seismic Detector Seismic Detector Hardened Light Armor Plating Hardened Light Armor Plating Subdweller Machine Gun Subdweller Machine Gun Subdweller Machine Gun Improved Light Cannon Improved Light Cannon Improved Light Cannon Hammer [Rating: 14] Favorites ----------- Power Ion Engine Engine Ion Engine Propulsion Light Treads Treads Light Treads Leg Aluminum Leg Utility Seismic Detector Device Seismic Detector Storage High-capacity Storage Unit Protection Hardened Light Armor Plating Weapon Improved Light Cannon Energy Gun Particle Gun Ballistic Gun Subdweller Machine Gun Ballistic Cannon Improved Light Cannon Special Weapon Mining Laser Impact Weapon Hammer Build | -11 -10 -10 ------- Run | Yrd Mat Sub Slots Evolved . | . . . Power . | . . . Propulsion . | . . . Utility . | . . . Weapon . | . . . Parts Attached 31 | 8 11 12 Power 4 | 1 1 2 Engine 4 | 1 1 2 Core . | . . . Reactor . | . . . Propulsion 9 | 2 5 2 Treads 4 | . 2 2 Leg 5 | 2 3 . Wheel . | . . . Hover . | . . . Flight . | . . . Utility 5 | 2 2 1 Device 1 | 1 . . Storage 3 | 1 2 . Processor . | . . . Hackware . | . . . Protection 1 | . . 1 Artifact . | . . . Weapon 13 | 3 3 7 Energy Gun 3 | 1 . 2 Energy Cannon . | . . . Ballistic Gun 6 | 2 . 4 Ballistic Cannon 2 | . 2 . Launcher . | . . . Special Weapon 1 | . 1 . Impact Weapon 1 | . . 1 Slashing Weapon . | . . . Piercing Weapon . | . . . Special Melee Weapon . | . . . Unidentified Prototypes . | . . . Parts Lost 1 | . . 1 Power . | . . . Propulsion . | . . . Utility . | . . . Weapon 1 | . . 1 Highest Loss Streak 1 | . . 1 To Critical Strikes . | . . . Average Backups 13 | 2 11 17 Power . | . . 1 Propulsion 3 | 1 3 4 Utility 4 | . 3 6 Weapon 5 | . 4 6 Tool/Special . | . . . Unused Backups 13 | . 2 11 Power . | . . . Propulsion 3 | . . 3 Utility 7 | . 2 5 Weapon 3 | . . 3 Tool/Special . | . . . Average Slot Usage (%) 99 | . 99 99 Engine 14 | . 14 14 Treads 16 | . 6 28 Leg 11 | . 21 . Device 12 | . 14 10 Storage 14 | . 14 14 Protection 1 | . . 3 Energy Gun 3 | . . 7 Ballistic Gun 7 | . . 15 Ballistic Cannon 14 | . 25 2 Special Weapon 1 | . 2 . Impact Weapon 1 | . . 3 Peak Build Rating 14 | 7 11 14 Average Rating 11 | 5 9 12 On Entrance 6 | . 7 11 Avg Prop Armor Cover (%) . | . . . Naked Turns . | . . . Heaviest Build 58 | 13 54 58 Greatest Support 40 | 20 40 40 Greatest Overweight (x) 4 | 4 1 1 Average Overweight (x) . | . . 1 Largest Inventory Capacity 20 | 8 20 20 Average Capacity 17 | 7 15 20 Most Carried 19 | 4 15 19 Average Carried 13 | 2 11 17 Final Capacity 20 | 8 20 20 Final Carried 19 | 4 15 19 Class Distribution -------------------- 100% | Mutant Dominant Class ---------------- Mutant | -10/Materials Mutant | -10/Subcaves Resources | -11 -10 -10 ----------- Run | Yrd Mat Sub Matter Collected 1391 | 297 418 676 Remotely . | . . . Salvage Created 896 | 52 310 534 Parts 75 | 11 19 45 Haulers Intercepted 2 | . 2 . Recyclers Shooed 2 | 1 1 . Parts Field Recycled . | . . . Retrieved Matter . | . . . Parts Self-Destructed 10 | . . 10 Prevented . | . . . Parts Restored . | . . . Kills | -11 -10 -10 ------- Run | Yrd Mat Sub Combat Hostiles Destroyed 24 | . 12 12 Guns 10 | . . 10 Cannons 13 | . 11 2 Classes Destroyed 10 | 1 6 3 Worker 1 | . 1 . Builder 1 | . 1 . Tunneler 3 | 3 . . Hauler 2 | . 2 . Turret 2 | . . 2 Watcher 1 | . 1 . Swarmer 9 | . 5 4 Grunt 7 | . 7 . Cobbler 2 | . . 2 Subdweller 8 | . . 8 Best Kill Streak 3 | 1 3 3 Combat Bots Only 3 | . 3 3 Max Kills in Single Turn 2 | 1 1 2 Gunslinging 1 | . . 1 Exploded . | . . . Melee . | . . . Uniques/NPCs Destroyed . | . . . Combat | -11 -10 -10 -------- Run | Yrd Mat Sub Hostile Shots Fired 148 | . 54 94 Missed 52 | . 13 39 Hits 96 | . 41 55 Projectile 96 | . 41 55 AOE 3 | . . 3 Critical Strikes 2 | . 1 1 Damage Taken 1375 | . 382 993 Core 273 | . 44 229 Absorbed by Shields . | . . . Regen/Repaired (Parts) 58 | . 58 . Core Remaining (%) 100 | 100 . . Volleys Fired 125 | 10 53 62 Largest 2 | 2 2 2 Hottest 130 | 60 100 130 Shots Fired 243 | 20 99 124 Gun 138 | 20 . 118 Cannon 102 | . 96 6 Launcher . | . . . Special 3 | . 3 . Kinetic 201 | 17 96 88 Thermal 39 | . 3 36 Explosive . | . . . Electromagnetic 3 | 3 . . Robot Hit Streak 20 | 7 10 20 Robot Miss Streak 4 | 1 4 2 Penetration Max . | . . . Secondary Targets 2 | . . 2 Max Gunslinging Chain 1 | . . 1 Shots Hit Robots 144 | 15 52 77 Core Hits 58 | 7 18 33 Critical Kills . | . . . Critical Parts Destroyed 1 | . . 1 Critical Strikes 4 | . 2 2 Destroy 1 | . . 1 Blast 3 | . 2 1 Melee Attacks 18 | . . 18 Impact 18 | . . 18 Slashing . | . . . Piercing . | . . . Sneak Attacks . | . . . Combat Hostiles . | . . . Follow-up Attacks . | . . . Damage Inflicted 2644 | 130 1141 1373 Guns 1421 | 130 . 1291 Cannons 1223 | . 1141 82 Explosions . | . . . Melee . | . . . Ramming . | . . . Kinetic 2210 | 115 1141 954 Thermal 419 | . . 419 Explosive . | . . . Electromagnetic 15 | 15 . . Impact . | . . . Slashing . | . . . Piercing . | . . . Highest Corruption . | . . . Average Corruption . | . . . Corruption Purged . | . . . Corruption Blocked . | . . . Overload Shots . | . . . Overflow Damage 18 | . 18 . Projectiles 18 | . 18 . Explosions . | . . . Melee . | . . . Knockbacks 15 | . 14 1 Impact . | . . . Kinetic 14 | . 13 1 Secondary 1 | . 1 . Self-Inflicted Damage . | . . . Shots . | . . . Rammed . | . . . Targets Rammed . | . . . Kicked . | . . . Crushed . | . . . Highest Temperature 93 | 20 93 28 Average Temperature 18 | 15 19 12 Received Heat Transfer 363 | . 99 264 Siege Activations . | . . . Martial Activations . | . . . Shielding Activations . | . . . Robots Disrupted . | . . . Combat Hostiles . | . . . Robots Corrupted 1 | . 1 . Combat Hostiles 1 | . 1 . Parts Fried 2 | . 2 . Impact Corruptions 1 | . 1 . Robots Melted . | . . . Combat Hostiles . | . . . Parts Melted . | . . . Heat Transferred 962 | . . 962 Parts Sabotaged . | . . . Parts Stolen . | . . . Parts Stripped . | . . . Power Chain Reactions . | . . . Alert | -11 -10 -10 ------- Run | Yrd Mat Sub Maximum Alert Level . | . . . Low Security (%) 100 | 100 100 . Level 1 . | . . . Level 2 . | . . . Level 3 . | . . . Level 4 . | . . . Level 5 . | . . . High Security . | . . . Max Security . | . . . Peak Influence 101 | 5 101 . Initial . | . . . Average 19 | . 20 . Influence Increases 597 | 15 377 205 Destroy 0b10 Robot/C 360 | . 240 120 Destroy 0b10 Robot/NC 40 | 15 25 . Destroy Leader 56 | . 46 10 Successful Hack 39 | . 39 . Disable Machine 15 | . 15 . Destroy Structure 12 | . 12 . Lose Combat Pursuer 75 | . . 75 Influence Decreases 551 | 15 374 162 Entered New Map 3 | . . 3 Time Decay 548 | 15 374 159 Squads Dispatched 1 | . 1 . Investigation 1 | . 1 . Extermination . | . . . Reinforcement . | . . . Assault . | . . . Garrison . | . . . Intercept . | . . . Searches Triggered . | . . . Construction Impeded . | . . . Haulers Reinforced . | . . . Active Scanning Responses . | . . . Cargo Convoy Interrupts . | . . . Stealth | -11 -10 -10 --------- Run | Yrd Mat Sub Distress Signals 2 | . 2 . Communications Jammed . | . . . Distress Signals . | . . . Times Spotted 51 | . 33 18 Peak Tracking Total 5 | . 5 3 Tactical Retreats 2 | . . 2 Traps | -11 -10 -10 ------- Run | Yrd Mat Sub Traps Triggered 1 | . 1 . Indirectly . | . . . Trap Hack Attempts . | . . . Triggered . | . . . Disarmed . | . . . Reprogrammed . | . . . Reused . | . . . Traps Extracted . | . . . Installed . | . . . Triggered . | . . . Machines | -11 -10 -10 ---------- Run | Yrd Mat Sub Machines Disabled 3 | . 1 2 Max in Single Turn 1 | . 1 1 Machines Repaired . | . . . Machines Dismantled . | . . . Machines Sabotaged . | . . . Overloaded Fab Kills . | . . . Hacking | -11 -10 -10 --------- Run | Yrd Mat Sub Machines Accessed 9 | . 8 1 Terminals 7 | . 7 . Fabricators . | . . . Repair Stations 1 | . 1 . Recycling Units . | . . . Scanalyzers . | . . . Garrison Access . | . . . Total Hacks 26 | . 21 5 Successful 12 | . 7 5 Failed 14 | . 14 . Catastrophic 1 | . 1 . Database Lockouts . | . . . Manual 17 | . 17 . Terminals 17 | . 17 . Fabricators . | . . . Repair Stations 4 | . 4 . Recycling Units . | . . . Scanalyzers . | . . . Garrison Access . | . . . Terminal Hacks 9 | . 4 5 Record 5 | . . 5 Part Schematic 4 | . 4 . Fabricator Hacks . | . . . Repair Station Hacks 2 | . 2 . Scan Component 1 | . 1 . Repair 1 | . 1 . Recycling Unit Hacks . | . . . Scanalyzer . | . . . Garrison Access Hacks . | . . . Unauthorized Hacks 1 | . 1 . Terminals 1 | . 1 . Botnet 1 | . 1 . Fabricators . | . . . Repair Stations . | . . . Recycling Units . | . . . Scanalyzers . | . . . Garrison Access . | . . . Data Cores Recovered . | . . . Used . | . . . Hacking Detections 7 | . 7 . Full Trace Events . | . . . Feedback Events . | . . . Feedback Blocked . | . . . Robot Schematics Acquired . | . . . Robots Built . | . . . Authchips . | . . . Time . | . . . Total Robot Build Rating . | . . . Part Schematics Acquired 4 | . 4 . Parts Built . | . . . Authchips . | . . . Time . | . . . Total Part Build Rating . | . . . Part Studies Acquired . | . . . Parts Repaired 1 | . 1 . Time 16 | . 16 . Parts Recycled . | . . . Recycled Matter . | . . . Retrieved Matter . | . . . Retrieved Components . | . . . Parts Scanalyzed . | . . . Part Schematics Acquired . | . . . Parts Damaged . | . . . Bothacking | -11 -10 -10 ------------ Run | Yrd Mat Sub Used RIF Installer . | . . . Robots Hacked . | . . . Non-combat . | . . . Combat . | . . . Robot Hacks Applied . | . . . Relay Couplers Released . | . . . Fabnet Peak Effective % . | . . . Robots Rewired . | . . . Allies Hacked . | . . . Hacks Repelled . | . . . Allies | -11 -10 -10 -------- Run | Yrd Mat Sub Total Allies . | . . . Largest Group . | . . . Highest-Rated Group . | . . . Highest-Rated Ally . | . . . Total Orders . | . . . Ally Attacks . | . . . Total Damage . | . . . Kills . | . . . Allies Corrupted . | . . . Allies Melted . | . . . Intel | -11 -10 -10 ------- Run | Yrd Mat Sub Active Infowar (turns) 3525 | 73 2039 1413 Seismic 3525 | 73 2039 1413 Robot Analysis Total . | . . . Derelict Logs Recovered 1 | . . 1 Drone Launches . | . . . Drone Recoveries . | . . . Exploration | -11 -10 -10 ------------- Run | Yrd Mat Sub Turns Passed 4152 | 150 2039 1963 Spaces Moved 1661 | 81 903 677 Core 16 | 16 . . Treads 879 | . 202 677 Legs 766 | 65 701 . Wheels . | . . . Hover . | . . . Flight . | . . . Fastest Speed 50 | 50 120 240 Average Speed 207 | 133 189 240 Slowest Speed 250 | 250 240 240 Overloaded Moves . | . . . Propulsion Burnouts . | . . . Robots Hopped . | . . . Potential Cave-ins . | . . . Cave-ins Triggered . | . . . Exploration Rate (%) 48 | 7 99 38 Regions Visited 2 Branch Regions 1 Pre-discovered Areas . | . . . Known Exits Taken . | . . . Unknown Exits Taken 2 | 1 1 . Scrap Searched . | . . . Spaces Dug 4 | . 3 1 Terrain Destroyed 9 | . 8 1 Melee 1 | . . 1 Projectile 8 | . 8 . AOE . | . . . Terrain Rammed . | . . . Walls Destroyed . | . . . Machines Disabled . | . . . Actions | -11 -10 -10 --------- Run | Yrd Mat Sub Total 2081 | 102 1127 852 Wait 192 | . 122 70 Move 1659 | 80 902 677 Hop . | . . . Pick Up 27 | 4 20 3 Fast Attach 9 | 7 2 . Attach 1 | . . 1 Detach 2 | . 2 . Swap 30 | 1 10 19 Drop 18 | . 16 2 Fire 125 | 10 53 62 Melee 18 | . . 18 Ram . | . . . Kick . | . . . Crush . | . . . Escape Stasis . | . . . Rewire . | . . . Trap . | . . . Miscellaneous . | . . . Route ------- -11/Scrapyard -10/Materials (discovered 5 exits: [*Mat x3] / [*Min] / *Sub) -10/Subcaves (discovered 3 exits: [*Mat x2] / [*Rec]) History --------- Turn | Location | Event 35 | -11/Scrapyard | Discovered new exit (range 16) 151 | -11/Scrapyard | Entered Materials 317 | -10/Materials | Build established: Mutant 478 | -10/Materials | Discovered new exit (range 15) 558 | -10/Materials | Discovered new exit (range 14) 581 | -10/Materials | Discovered new exit (range 15) 1110 | -10/Materials | Repaired Imp. Light Cannon 1225 | -10/Materials | Discovered new exit (range 15) 1902 | -10/Materials | Discovered new exit (range 5) 2190 | -10/Materials | Entered Subcaves 2280 | -10/Subcaves | Ambushed by Subdwellers from Twisted Machinery 2280 | -10/Subcaves | Shifting Twisted Machinery released Barrage Gun 2280 | -10/Subcaves | Shifting Twisted Machinery released Battle Cannon 2359 | -10/Subcaves | Discovered new exit (range 5) 2418 | -10/Subcaves | Discovered new exit (range 3) 2894 | -10/Subcaves | Ambushed by angry Subdweller bent on revenge 3328 | -10/Subcaves | Discovered new exit (range 11) 3329 | -10/Subcaves | Core integrity fell below 50% 3652 | -10/Subcaves | Learned Materials emergency access door positions 3659 | -10/Subcaves | Shifting Twisted Machinery released Barrage Gun 3668 | -10/Subcaves | Shifting Twisted Machinery released Sub. Monowheel 3808 | -10/Subcaves | Core integrity fell below 20% 4091 | -10/Subcaves | Visited Clippyterm 4098 | -10/Subcaves | Learned Research machine intel 4098 | -10/Subcaves | Learned Factory garrison access intel 4153 | -10/Subcaves | Destroyed by IS-OWJ(R) with Subdweller Beam Cannon Last Messages --------------- distribution algorithms, I have access to useful relevant data. Data stored: Research machine intel. >>Record! "Tag" It looks like you don't want to be "it," would you like help? Data stored: Factory garrison access intel. >>Record "Bogan" It looks like you're interested in the dark side, V4-D3R would be pleased, though I don't think they're in the habit of teaching apprentices. >>Record! "01-MTF" It looks like you're after the notorious thief from 0b1. I don't know where they are, but my data indicates that someone they're looking for is frequently seen in Scraptown. 04147_ IS-OWJ(R) emerges from the Twisted Machinery. 04151_ FU-5TU(R) destroyed. Map ----- +----------------------------------------------------+ | ?????????????????????????????????????????????????? | | ?????????????????????????????????????????????????? | | ?????????????????????????????????????????????????? | | ?????????????????????????????????????????????????? | | ?????????????????????????????????????????????????? | | ?????????????????????????????????????????????????? | | ?????????????????????????????????????????????????? | | ?????????????????????????????????????????????????? | | ?????????????????????????????????????????????????? | | ?????????????????????????????????????????????????? | | ????????????????????????"????????????????????????? | | ???????????????????????? "???????????????????????? | | ???????????????????????? ???????????????????????? | | ???????????????????????# &???????????????????????? | | ??????????????????????##R%???????????????????????? | | ?????????????????????## ]#???????????? ???????? | | ?????????????????????# ???????????? #??????? | | ?????????????????????? ???????????# ###????? | | ?????????????????????? ??????#????? ##???? | | ??????????????????????? ????? ##???? ????? | | ??????????????????????? #????? #???? ?????? | | ???????????????????????# ;???? #???? ?????? | | ???????????????????????# ##??? ##???# ??????? | | ??????????????????????## #??# #??? ##?????# | | ??????????????????????#; ### #???# ?????## | | ??????????????????????# @ #???# #????## | | ??????????????????????# #??## ##?### | | ??????????????????????## #### #?? | | ???????????????????????### ### #??? | | ?????????????????????????# ##### ##??# | | ????????????????????###### ###??## ##?# | | ???????????????????## ## ##???# ##" ### | | ???????????????????# ##??## ### "" | | ???????????????????# #???# ### "" | | ???????????????????# ## ##### " | | ??????????????????### # # " " | | ????????????????### ## #### ##"### "" " | | ????????????????# # ##### ##"#?## """# | | ????????????????## # # ## "#??# "" # | | ????????????###### ### ## #? "#####""## | | ????????????#"""### ## ### ### ####? | | ????????????#"" ## ###?? ### "#### | | ????????????#"X ##???? #??# "" " | | ????????????#"" ## ##????? ? ##???##"""" | | ????????????#"""## ##?????? #?????##" "" | | ????????????###### #???????####??????#" * | | ?????????????????# ### ##?????????????????#" | | ?????????????????###?######??????????????????## | | ??????????????????????????????????????????????# | | ?????????????????????????????????????????????## | +----------------------------------------------------+ Best States ------------- Heat Dissipation 25 Energy Generation 10 Energy Capacity 250 Matter Stores 300 Matter Capacity 300 Sight Range 16 Terrain Scan Density 10 Armor Coverage 150 Evasion (%) 55 Recoil Reduction 2 Item Schematics ----------------- Seismic Detector | -10/Materials | Hacked Signal Interpreter | -10/Materials | Hacked Assault Rifle | -10/Materials | Hacked Flight Unit | -10/Materials | Hacked Robot Schematics ------------------ None Fabricated ------------ Nothing Repaired ---------- Imp. Light Cannon | 57% | -10/Materials Studied --------- None Alien Tech Used ----------------- None Achievements -------------- None Challenges ------------ None Game ------ Seed DirtyMagneticMatrix Manual? 0 Play Time 00:25:24 Cumulative 247.7 hours Start 2025.11.29 @ 14:52:45 End 2025.11.29 @ 15:24:05 Sessions 1 Manual Loads 0 Difficulty Rogue Special Mode None Game No. 184 Rogue 184 Adventurer 0 Explorer 0 Win Type - Total 11 Types 6/0/2/1/0/0/0/1/0/1 Lore% 66 Gallery% 74 Achievement% 66 Wizard Run 0 Options --------- Layout 2 ASCII 0 Keyboard 1 Movement Vi Keybinds 0 Fullscreen 1 Font 32/Tamsyn Map View 50x44 Zoom Use 0% Tactical HUD 1 Map Filters NONE Filters NONE Steam 1 RUN: d0e130b8-3c2b-48f8-8fd1-92c26d917f90